bitfinex/quotes_ETHUSD_20250711
["timestamp","ask_amount","ask_price","bid_price","bid_amount"]
[1752230887337,5.478232,3006.6,3006.5,8.38912672]
[1752230887486,4.8156,3006.6,3006.5,8.38912672]
[1752230888012,4.8156,3006.6,3006.5,5.063]
[1752230888201,4.8156,3006.6,3006.5,8.38912672]
[1752230889791,4.8156,3006.6,3006.5,8.82662672]
[1752230892315,4.8156,3006.6,3006.5,9.13663198]
[1752230894617,4.8156,3006.6,3006.5,16.16825518]
[1752230895330,4.49159329,3006.6,3006.5,16.47862633]
[1752230895698,4.49159329,3006.6,3006.5,11.50410863]
[1752230895888,4.09283506,3006.6,3006.5,9.13685135]
[1752230898301,4.09283506,3006.6,3006.5,8.69935135]
[1752230902905,4.09283506,3006.6,3006.5,5.37322463]
[1752230903106,4.09283506,3006.6,3006.5,8.69935135]
[1752230903440,4.09283506,3006.6,3006.5,5.37322463]
[1752230903629,4.54781857,3006.6,3006.5,5.37322463]
[1752230903827,5.00281857,3006.6,3006.5,5.37322463]
[1752230904227,5.00281857,3006.6,3005.8,10.35852434]
[1752230904228,0.7501,3006.5,3005.2,7.0326232]
[1752230904454,0.7501,3006.5,3006.0,3.32664652]
[1752230904455,0.1656,3006.3,3006.0,3.32664652]
[1752230904640,4.54783506,3006.3,3006.0,3.32664652]
[1752230904808,0.45478351,3006.2,3006.0,3.32664652]
[1752230905009,0.90978351,3006.2,3006.0,3.32664652]
[1752230905406,0.90978351,3006.2,3005.9,5.061]
[1752230905407,1.2875,3006.1,3005.9,5.061]
[1752230905661,0.1656,3005.9,3005.2,0.001]
[1752230905966,4.92533506,3005.8,3005.5,3.32723285]
[1752230906112,5.46336857,3005.8,3005.6,3.32711938]
[1752230906444,5.46336857,3005.8,3005.7,3.32701201]
[1752230906739,0.1656,3005.7,3005.6,3.32707616]
[1752230906937,3.55266358,3005.8,3005.7,3.32701201]
[1752230907158,3.55266358,3005.8,3005.7,3.78631201]
[1752230907714,3.55266358,3005.8,3005.7,3.32701201]
[1752230908109,3.55266358,3005.8,3005.7,8.38801201]
[1752230908510,3.55266358,3005.8,3005.7,8.84731201]
[1752230910649,0.8076,3006.1,3006.0,3.32667997]
[1752230910948,1.28912636,3006.1,3006.0,3.32667997]
[1752230912943,3.55266358,3006.2,3006.1,3.3265693]
[1752230913266,3.55266358,3006.2,3005.9,5.061]
[1752230913267,0.7968,3006.0,3005.9,8.38768975]
[1752230914955,0.7968,3006.0,3005.9,3.32668975]
[1752230915157,0.1656,3005.9,3005.8,8.38785363]
[1752230916239,0.1656,3005.9,3005.8,8.69830754]
[1752230917861,0.1656,3005.9,3005.8,9.15760754]
[1752230918032,0.1656,3005.9,3005.8,10.40606688]
[1752230918756,0.1656,3005.9,3005.8,11.20556688]
[1752230919449,0.1656,3005.9,3005.8,9.95710754]
[1752230920277,0.1656,3005.9,3005.8,8.69835523]
[1752230920627,0.1656,3005.9,3005.8,5.37145391]
[1752230920829,0.1656,3005.9,3005.8,0.31045391]
[1752230921038,0.6185,3005.9,3005.8,0.31045391]
[1752230921429,0.6185,3005.9,3005.4,5.061]
[1752230921430,0.7816,3005.8,3005.4,5.061]
[1752230921764,0.1656,3005.5,3005.4,8.38834411]
[1752230924953,0.1656,3005.5,3005.4,5.061]
[1752230925153,0.1656,3005.5,3005.4,8.38834411]
[1752230925673,0.1656,3005.5,3005.2,0.001]
[1752230925871,0.1656,3005.3,3005.2,0.001]
[1752230926074,3.71826358,3005.3,3005.2,0.001]
[1752230926267,4.17116358,3005.3,3005.2,0.001]
[1752230930052,0.8023,3005.2,3004.6,3.32918168]
[1752230930387,4.66850994,3005.1,3004.8,3.3279772]
[1752230930575,4.05000994,3005.1,3004.9,3.327886]
[1752230930952,0.1656,3004.9,3004.7,3.32808924]
[1752230931148,4.50290994,3005.1,3004.7,3.32808924]
[1752230931378,4.50290994,3005.1,3004.8,3.32799879]
[1752230931564,1.03662099,3005.0,3004.7,3.32808606]
[1752230931886,4.00556358,3004.9,3004.6,0.001]
[1752230932095,0.7859,3004.8,3004.6,0.001]
[1752230932272,3.55266358,3004.7,3004.6,0.001]
[1752230932465,4.03180994,3004.7,3004.6,0.001]
[1752230932653,4.03180994,3004.7,3004.6,3.32923004]
[1752230934087,4.03180994,3004.7,3004.6,0.001]
[1752230934285,0.1664,3004.6,3004.3,3.32856239]
[1752230934588,0.1664,3004.3,3004.2,3.32967049]
[1752230935579,0.1664,3004.3,3004.2,8.39067049]
[1752230938109,0.9978,3004.3,3004.2,2.9363605]
[1752230938334,0.9978,3004.3,3004.2,2.52343479]
[1752230938472,4.55046358,3004.3,3004.0,0.001]
[1752230938661,0.1664,3004.1,3004.0,3.32982547]
[1752230938867,3.71906358,3004.1,3004.0,2.65345466]
[1752230939092,3.71906358,3004.1,3003.9,3.32995616]
[1752230939397,3.55266358,3004.1,3003.9,3.32995616]
[1752230939605,3.55266358,3004.1,3003.9,0.001]
[1752230939907,3.55266358,3004.1,3004.0,3.3288948]
[1752230941012,3.55266358,3004.1,3004.0,3.7570948]
[1752230941715,3.55266358,3004.1,3003.9,0.001]
[1752230941716,0.1664,3004.0,3003.9,0.001]
[1752230941923,0.6193,3004.0,3003.9,0.001]
[1752230942423,0.6193,3004.0,3003.9,3.33000562]
[1752230942626,0.1664,3004.0,3003.9,0.001]
[1752230943004,3.71906358,3004.0,3003.9,0.001]
[1752230943318,4.21653994,3004.0,3003.9,0.001]
[1752230943731,4.66943994,3004.0,3003.9,0.001]
[1752230944755,4.66943994,3004.0,3003.9,3.33000562]
[1752230944954,4.21653994,3004.0,3003.9,3.33000562]
[1752230945252,4.21653994,3004.0,3003.9,0.001]
[1752230945645,3.71906358,3004.0,3003.9,3.75820562]
[1752230949452,3.71906358,3004.0,3003.9,3.33000562]
[1752230949624,0.7943,3003.9,3003.7,3.32922192]
[1752230949962,0.1664,3003.8,3003.6,3.32933812]
[1752230950256,1.2472,3003.9,3003.6,3.32933812]
[1752230950435,1.00282636,3003.8,3003.7,3.32922728]
[1752230951841,4.55548994,3003.8,3003.7,3.32922728]
[1752230952927,0.002,3004.1,3004.0,3.3288948]
[1752230953143,0.002,3004.1,3004.0,3.7782948]
[1752230954129,0.002,3004.1,3004.0,4.0885276]
[1752230955641,0.7686,3005.1,3004.8,3.32800851]
[1752230955832,0.43212636,3005.0,3004.9,3.63805743]
[1752230958534,8.61366358,3005.2,3004.9,3.63805743]
[1752230958870,3.55266358,3005.2,3005.1,3.32767628]
[1752230959067,3.55266358,3005.2,3005.1,3.63790908]
[1752230961362,3.55266358,3005.2,3005.1,4.08730908]
[1752230961568,0.002,3005.4,3005.3,3.32745482]
[1752230961863,0.002,3005.4,3005.3,3.63768762]
[1752230962037,0.002,3005.4,3005.3,4.08708762]
[1752230962837,0.002,3005.4,3005.3,9.90008762]
[1752230963240,0.002,3005.4,3005.3,11.22285227]
[1752230964354,0.002,3005.4,3005.3,9.90008762]
[1752230968506,3.55266358,3005.8,3005.7,3.32701201]
[1752230968655,3.55266358,3006.5,3006.4,3.32623736]
[1752230968860,3.55266358,3006.5,3006.4,3.63647016]
[1752230971973,3.55266358,3006.5,3006.4,4.08587016]
[1752230975987,3.55266358,3006.5,3006.4,4.083998]
[1752230978540,3.55466358,3006.8,3006.7,3.32590547]
[1752230978718,3.55466358,3006.8,3006.7,8.69126611]
[1752230978921,3.55466358,3006.8,3006.7,9.14066611]
[1752230979242,3.55466358,3006.8,3006.7,9.91636611]
[1752230980911,0.002,3006.9,3006.8,3.32579486]
[1752230981217,0.002,3006.9,3006.8,4.0793555]
[1752230982046,0.002,3006.9,3006.8,4.11261344]
[1752230982545,0.002,3006.9,3006.8,4.0793555]
[1752230983647,0.002,3006.9,3006.8,8.6911555]
[1752230984928,0.002,3006.9,3006.8,9.1363555]
[1752230985316,0.002,3006.9,3006.8,8.6911555]
[1752230985728,0.002,3006.9,3006.8,9.1363555]
[1752230986860,0.002,3006.9,3006.8,11.1433816]
[1752230987353,0.002,3006.9,3006.8,10.83502096]
[1752230987555,0.002,3006.9,3006.8,9.89730566]
[1752230988054,0.002,3006.9,3006.8,9.89729904]
[1752230991359,0.002,3007.0,3006.9,3.32568425]
[1752230991658,0.002,3007.0,3006.9,4.07938843]
[1752230992074,0.002,3007.0,3006.9,3.63418843]
[1752230992364,0.35786636,3007.0,3006.9,3.63418843]
[1752230993227,3.91052994,3007.0,3006.9,3.63418843]
[1752230993424,4.36132994,3007.0,3006.9,0.30850418]
[1752230993635,4.36132994,3007.0,3006.9,3.63418843]
[1752230994478,4.36132994,3007.0,3006.9,0.30850418]
[1752230994765,4.36132994,3007.0,3006.9,3.63418843]
[1752230995071,3.91052994,3007.0,3006.9,3.63418843]
[1752230996977,3.91052994,3007.0,3006.9,0.30850418]
[1752230997176,3.91052994,3007.0,3006.9,3.63418843]
[1752230999091,3.55466358,3007.0,3006.9,3.63418843]
[1752231000284,3.55466358,3007.0,3006.9,0.30850418]
[1752231000448,4.00546358,3007.0,3006.9,0.30850418]
[1752231001086,4.00546358,3007.0,3006.9,0.31046374]
[1752231001784,4.76246358,3007.0,3006.4,5.055]
[1752231001984,0.9226,3006.8,3006.4,5.055]
[1752231002285,3.55266358,3006.7,3006.4,5.055]
[1752231002588,4.00346358,3006.7,3006.4,5.055]
[1752231002770,4.00346358,3006.7,3006.5,3.32607016]
[1752231002965,0.47604636,3006.6,3006.5,3.32607016]
[1752231003491,0.47604636,3006.6,3006.4,8.38123492]
[1752231003492,0.47604636,3006.6,3006.4,8.38121297]
[1752231003698,0.1656,3006.5,3006.4,8.38121297]
[1752231004265,0.1656,3006.5,3006.4,3.32621297]
[1752231004798,0.0433,3006.5,3006.4,3.32621297]
[1752231005504,0.0433,3006.5,3006.4,3.77141297]
[1752231008370,0.0433,3006.5,3006.4,3.32621297]
[1752231008783,0.0433,3006.5,3006.4,3.77141297]
[1752231009102,0.0433,3006.5,3006.4,5.80758851]
[1752231010005,0.0433,3006.5,3006.4,4.59231297]
[1752231012326,0.0433,3006.5,3006.4,4.62557534]
[1752231012507,0.0433,3006.5,3006.4,4.59231297]
[1752231013699,0.0433,3006.5,3006.4,4.62557534]
[1752231013900,0.0433,3006.5,3006.4,4.90265886]
[1752231014214,0.0433,3006.5,3006.4,6.26432136]
[1752231014509,0.0433,3006.5,3006.4,6.23105899]
[1752231016381,0.002,3007.0,3006.9,3.32568425]
[1752231016576,0.002,3007.0,3006.9,8.69103014]
[1752231016812,0.002,3007.0,3006.9,9.15903014]
[1752231017007,0.002,3007.0,3006.9,8.69103014]
[1752231017225,0.002,3007.0,3006.9,9.15903014]
[1752231017978,0.002,3007.0,3006.9,8.84868425]
[1752231018178,0.002,3007.0,3006.9,9.65598425]
[1752231018625,0.002,3007.0,3006.9,8.84868425]
[1752231019498,0.002,3007.0,3006.9,9.15910812]
[1752231021032,0.002,3007.0,3006.9,8.69110812]
[1752231021249,0.002,3007.0,3006.9,3.63610812]
[1752231021533,0.82876636,3007.0,3006.9,3.63610812]
[1752231021697,0.8277,3006.8,3006.2,3.32642711]
[1752231021903,3.55266358,3006.7,3006.6,3.32601609]
[1752231022204,4.46159994,3006.7,3006.6,3.32601609]
[1752231022600,4.46159994,3006.7,3006.5,3.32610103]
[1752231022800,3.99069994,3006.7,3006.5,3.32610103]
[1752231023032,3.99069994,3006.7,3006.6,3.32601609]
[1752231023235,4.46159994,3006.7,3006.6,3.32601609]
[1752231023531,0.1656,3006.6,3006.5,3.32611425]
[1752231023738,0.54548999,3006.6,3006.5,3.32611425]
[1752231024650,0.54548999,3006.6,3006.3,5.054]
[1752231024651,0.8277,3006.4,3006.3,3.32628271]
[1752231025538,1.30888999,3006.6,3006.5,3.32612672]
[1752231026745,1.77978999,3006.6,3006.5,3.32612672]
[1752231027233,5.33245357,3006.6,3006.5,3.32612672]
[1752231027430,4.86155357,3006.6,3006.5,3.32612672]
[1752231033375,4.09815357,3006.6,3006.5,3.32612672]
[1752231033848,3.55266358,3006.6,3006.5,4.10489216]
[1752231038556,4.82446358,3006.6,3006.5,3.63689216]
[1752231039261,0.1656,3006.5,3006.4,3.32617681]
[1752231039463,0.4709,3006.5,3006.4,3.32617681]
[1752231039639,0.95334636,3006.5,3006.4,3.32617681]
[1752231039960,0.48244636,3006.5,3006.4,3.32617681]
[1752231040464,0.8009,3006.4,3005.3,0.7752]
[1752231040621,3.55266358,3006.3,3005.9,3.32669942]
[1752231040827,1.2476,3006.2,3005.9,3.32669942]
[1752231041058,0.48002636,3006.1,3005.9,3.32669942]
[1752231041258,0.4467,3006.0,3005.9,3.32669942]
[1752231042682,0.4467,3006.0,3005.5,3.3271284]
[1752231042829,0.4467,3005.9,3005.6,8.38209718]
[1752231043364,3.99936358,3005.8,3005.6,0.001]
[1752231043562,0.39993636,3005.7,3005.6,3.32811667]
[1752231043776,3.55266358,3005.7,3005.6,3.32811667]
[1752231044773,6.3016,3006.0,3005.9,3.32679064]
[1752231044774,3.55266358,3006.0,3005.9,3.32679064]
[1752231044965,3.55266358,3006.0,3005.9,9.62389064]
[1752231046665,3.99936358,3006.6,3006.5,3.32612672]
[1752231046967,5.01001842,3006.6,3006.5,3.32612672]
[1752231051156,5.01001842,3006.6,3006.5,3.63705223]
[1752231051739,5.01001842,3006.6,3006.5,0.31092551]
[1752231052140,10.0,3006.5,3006.1,3.32649991]
[1752231052450,0.1656,3006.1,3005.6,0.001]
[1752231052657,0.8331,3006.0,3005.6,0.001]
[1752231052972,0.58871,3005.9,3005.8,3.32684634]
[1752231053191,1.03541,3005.9,3005.8,3.32684634]
[1752231053337,1.03541,3005.9,3005.6,0.001]
[1752231053540,1.2532,3005.8,3005.6,0.001]
[1752231053751,6.3072,3005.8,3005.6,0.001]
[1752231053950,1.6398861,3005.7,3005.6,0.001]
[1752231054153,1.6398861,3005.7,3005.6,3.3281227]
[1752231054548,1.1931861,3005.7,3005.6,3.3281227]
[1752231055576,0.7747,3006.0,3005.9,3.32679064]
[1752231055759,5.8287,3006.0,3005.9,3.32679064]
[1752231055961,6.2754,3006.0,3005.9,3.32679064]
[1752231056687,1.2214,3006.0,3005.9,3.32679064]
[1752231056886,6.2754,3006.0,3005.9,3.32679064]
[1752231057351,6.90294,3006.0,3005.9,3.32679064]
[1752231058097,1.40224,3006.0,3005.9,3.32679064]
[1752231058386,5.8287,3006.0,3005.9,3.32679064]
[1752231058690,5.054,3006.0,3005.9,3.32679064]
[1752231058861,0.7752,3006.2,3006.1,3.3265693]
[1752231059063,15.8292,3006.2,3006.1,3.3265693]
[1752231059389,5.054,3006.2,3006.1,3.3265693]
[1752231059551,5.91466636,3006.2,3006.1,3.3265693]
[1752231060286,0.86066636,3006.2,3006.1,3.3265693]
[1752231060583,5.054,3006.2,3006.1,3.3265693]
[1752231062400,13.99936358,3006.4,3006.3,3.326348]
[1752231062560,19.05336358,3006.4,3006.3,3.326348]
[1752231063272,0.1656,3006.3,3006.2,3.32640375]
[1752231063451,0.9359,3006.2,3006.0,3.32662304]
[1752231063664,0.1656,3006.0,3005.6,5.055]
[1752231064000,9.05336358,3005.9,3005.8,3.32690132]
[1752231064169,9.05336358,3005.9,3005.8,3.63748551]
[1752231064698,9.82366358,3005.9,3005.6,0.001]
[1752231064914,19.37696358,3005.9,3005.6,0.001]
[1752231065210,0.4467,3005.8,3005.7,3.3269103]
[1752231065700,19.37696358,3005.9,3005.7,3.3269103]
[1752231065701,19.37696358,3005.9,3005.8,3.32690132]
[1752231065898,9.37696358,3005.9,3005.8,3.32690132]
[1752231066974,3.55266358,3005.9,3005.8,3.32690132]
[1752231067171,8.60666358,3005.9,3005.8,3.32690132]
[1752231068196,9.46732994,3005.9,3005.8,3.32690132]
[1752231068406,0.9615,3005.8,3005.7,3.32696747]
[1752231068584,1.4082,3005.8,3005.7,3.32696747]
[1752231068803,10.0,3005.7,3005.6,0.001]
[1752231069008,0.1656,3005.6,3004.9,3.32785845]
[1752231069219,0.7907,3005.4,3005.3,3.32735447]
[1752231069620,1.2374,3005.4,3005.3,3.32735447]
[1752231070497,0.7907,3005.4,3005.3,3.32735447]
[1752231072802,0.7907,3005.4,3002.1,9.44087497]
[1752231072803,0.55,3005.3,3005.1,3.32764885]
[1752231073008,1.87956636,3005.3,3005.2,3.32756555]
[1752231073209,6.93356636,3005.3,3005.2,3.32756555]
[1752231073404,0.1656,3005.2,3005.1,3.32764963]
[1752231073630,0.92122974,3005.2,3005.1,3.32767628]
[1752231073797,5.97522974,3005.2,3005.1,3.32767628]
[1752231074000,0.1656,3005.1,3004.7,3.32803018]
[1752231074313,5.054,3005.0,3004.9,3.32779647]
[1752231074515,0.97,3004.9,3004.8,3.32800615]
[1752231074718,5.00635358,3004.9,3004.8,3.32800615]
[1752231075930,5.47525358,3004.9,3004.8,3.32800615]
[1752231076819,5.00635358,3004.9,3004.8,3.32800615]
[1752231078719,10.06135358,3004.9,3004.8,3.32800615]
[1752231079912,5.00635358,3004.9,3004.8,3.32800615]
[1752231080112,10.06135358,3004.9,3004.8,3.32800615]
[1752231080546,10.06135358,3004.9,3004.6,0.001]
[1752231080742,0.1664,3004.7,3004.6,0.001]
[1752231080944,8.77406358,3004.7,3004.6,0.001]
[1752231081106,10.58856358,3004.7,3004.6,0.001]
[1752231081312,20.58856358,3004.7,3004.6,0.001]
[1752231083338,8.77406358,3004.7,3004.6,3.32923004]
[1752231085075,8.77406358,3004.7,3004.6,3.78263004]
[1752231085280,3.71906358,3004.7,3004.6,3.78263004]
[1752231085583,3.71906358,3004.7,3004.6,3.32923004]
[1752231085754,8.77406358,3004.7,3004.6,3.32923004]
[1752231086858,3.71906358,3004.7,3004.6,3.32923004]
[1752231087178,8.77406358,3004.7,3004.6,3.78263004]
[1752231087683,8.77406358,3004.7,3004.6,3.32923004]
[1752231087871,3.71906358,3004.7,3004.6,3.32923004]
[1752231088179,8.77406358,3004.7,3004.6,3.78263004]
[1752231090081,8.77406358,3004.7,3004.6,3.32923004]
[1752231090586,3.71906358,3004.7,3004.6,3.32923004]
[1752231090882,9.14596994,3004.7,3004.6,3.32923004]
[1752231091455,8.77406358,3004.7,3004.6,3.32923004]
[1752231092288,8.77406358,3004.7,3004.5,3.32933327]
[1752231092460,3.55266358,3004.7,3004.6,3.32823004]
[1752231092655,8.60766358,3004.7,3004.6,3.32823004]
[1752231095407,3.55266358,3004.7,3004.6,3.32823004]
[1752231095582,8.60766358,3004.7,3004.6,3.32823004]
[1752231095984,3.55266358,3004.7,3004.6,5.26508637]
[1752231096185,3.55266358,3005.3,3005.2,3.32756555]
[1752231096388,3.55266358,3005.3,3005.2,3.78096555]
[1752231099692,3.55266358,3005.3,3005.2,3.32756555]
[1752231099923,5.055,3005.4,3005.3,3.32745482]
[1752231100228,5.055,3005.4,3005.3,4.08392657]
[1752231101494,5.055,3005.4,3005.3,3.63812657]
[1752231101690,10.0,3005.7,3005.4,3.32732344]
[1752231101890,1.35526636,3005.6,3005.5,3.63790515]
[1752231102123,1.3718,3006.1,3005.9,3.32673141]
[1752231102343,1.3718,3006.1,3005.9,3.32668275]
[1752231102344,9.704,3006.0,3005.9,3.32668275]
[1752231102631,4.65,3006.0,3005.9,4.08314601]
[1752231103121,4.65,3006.0,3005.9,3.63734601]
[1752231103422,0.9704,3006.0,3005.9,3.63734601]
[1752231103821,0.9704,3006.0,3005.9,4.08314601]
[1752231104020,6.0244,3006.0,3005.9,4.08314601]
[1752231104924,0.9704,3006.0,3005.9,3.63734601]
[1752231105147,10.8218,3006.4,3006.2,3.32644068]
[1752231105435,11.3718,3006.4,3006.3,0.31066326]
[1752231105607,11.8456,3006.4,3006.3,0.31066326]
[1752231106010,16.4258,3006.4,3006.3,0.31066326]
[1752231106616,11.8456,3006.4,3006.3,0.31066326]
[1752231107039,0.1656,3006.3,3006.1,3.32651189]
[1752231107243,5.054,3006.2,3006.1,3.32651189]
[1752231107404,5.054,3006.2,3006.1,3.63680357]
[1752231108640,11.3718,3006.4,3006.3,3.326348]
[1752231108837,16.4248,3006.4,3006.3,3.63663968]
[1752231109039,11.3718,3006.4,3006.3,0.31029168]
[1752231109252,7.98,3006.5,3006.3,3.63663968]
[1752231109541,0.002,3006.5,3006.4,4.08232904]
[1752231109742,5.053,3006.6,3006.5,3.32612672]
[1752231109931,5.053,3006.6,3006.5,14.86638792]
[1752231110362,0.55,3007.5,3006.5,4.86637038]
[1752231110566,5.63722906,3007.4,3006.6,0.7557612]
[1752231110858,0.55,3007.3,3006.9,3.32560551]
[1752231111018,5.053,3007.2,3006.7,0.4458]
[1752231111215,5.053,3007.2,3007.0,3.32551212]
[1752231111437,5.6133,3007.1,3007.0,3.32551212]
[1752231111660,6.1633,3007.1,3007.0,3.63522918]
[1752231111953,6.1633,3007.1,3007.0,0.30971706]
[1752231112919,6.1633,3007.1,3007.0,3.63529072]
[1752231113335,1.1103,3007.1,3007.0,0.30971706]
[1752231113655,5.603,3007.1,3007.0,0.30971706]
[1752231114547,0.55,3007.1,3007.0,0.30971706]
[1752231114740,5.602,3007.1,3007.0,0.30971706]
[1752231114936,0.55,3007.1,3007.0,3.63529072]
[1752231115157,5.052,3007.1,3007.0,0.30971706]
[1752231115321,1.1372,3007.1,3007.0,0.30971706]
[1752231115640,6.1892,3007.1,3007.0,0.30971706]
[1752231118256,0.1656,3007.0,3006.8,3.32573774]
[1752231118559,1.1372,3007.1,3006.9,3.63516446]
[1752231118760,1.1372,3007.1,3007.0,0.30948021]
[1752231119447,6.1892,3007.1,3007.0,0.30948021]
[1752231123124,17.1172,3007.1,3007.0,0.30948021]
[1752231124602,21.7672,3007.1,3007.0,0.30948021]
[1752231127279,22.4790609,3007.1,3007.0,0.30948021]
[1752231128892,0.55,3006.6,3005.8,4.15037489]
[1752231129098,7.01977458,3006.3,3005.8,4.15037489]
[1752231129394,5.051,3006.2,3005.8,4.15037489]
[1752231129568,5.051,3006.2,3005.9,3.77255586]
[1752231129996,4.65,3006.1,3005.7,0.4458]
[1752231130166,0.1656,3005.9,3005.8,0.4669]
[1752231130372,4.65,3005.9,3005.8,3.79380132]
[1752231130572,4.65,3005.9,3005.8,0.4669]
[1752231130876,4.65,3005.9,3005.8,3.79380132]
[1752231132100,4.65,3005.9,3005.8,4.57350132]
[1752231134902,4.65,3005.9,3005.8,5.3635518]
[1752231135392,9.701,3006.1,3006.0,4.08047997]
[1752231135697,4.65,3006.1,3006.0,4.54737997]
[1752231138885,4.65,3006.2,3006.1,3.3265693]
[1752231139088,4.65,3006.2,3006.1,3.7934693]
[1752231139967,9.701,3006.2,3006.1,3.7934693]
[1752231140800,9.701,3006.2,3006.1,4.10442955]
[1752231141799,9.701,3006.2,3006.1,3.63752955]
[1752231142276,10.74699,3006.2,3006.1,0.31096025]
[1752231142677,11.29699,3006.2,3006.1,0.31096025]
[1752231146628,11.29699,3006.2,3006.1,3.63752955]
[1752231147339,11.29699,3006.2,3006.1,0.31096025]
[1752231148139,6.24599,3006.2,3006.1,0.31096025]
[1752231148336,11.29699,3006.2,3006.1,0.31096025]
[1752231148841,11.29699,3006.2,3006.1,3.63752955]
[1752231149056,11.29699,3006.2,3006.1,0.31096025]
[1752231151746,11.29699,3006.2,3006.1,3.63752955]
[1752231152045,11.29699,3006.2,3006.1,0.31096025]
[1752231153018,6.24599,3006.2,3006.1,0.31096025]
[1752231153320,11.29699,3006.2,3006.1,0.31096025]
[1752231153637,4.65,3006.2,3006.1,4.10442955]
[1752231154232,10.0,3006.7,3006.6,3.32601609]
[1752231154426,15.76598687,3006.7,3006.6,4.10387634]
[1752231155756,4.65,3006.9,3006.7,3.32589746]
[1752231155959,5.2,3006.9,3006.8,0.31096025]
[1752231156148,10.96606725,3006.9,3006.8,0.31096025]
[1752231157363,10.251,3006.9,3006.8,0.31096025]
[1752231160650,10.25,3006.9,3006.8,4.08465511]
[1752231160975,4.65,3006.9,3006.8,4.87395511]
[1752231161363,9.7,3006.9,3006.8,0.31096025]
[1752231161563,9.7,3006.9,3006.8,0.75886025]
[1752231161956,9.7,3006.9,3006.8,4.08465511]
[1752231162282,9.7,3006.9,3006.8,0.75886025]
[1752231163361,9.7,3006.9,3006.8,4.08465511]
[1752231163764,11.22,3006.9,3006.8,0.31096025]
[1752231164170,21.22,3006.9,3006.8,0.31096025]
[1752231164385,22.1758,3006.9,3006.8,0.31096025]
[1752231164890,0.55,3006.3,3006.0,0.001]
[1752231165186,5.05,3006.2,3006.0,3.77556549]
[1752231165355,5.6,3006.2,3006.1,0.4479]
[1752231166103,5.6,3006.2,3006.0,3.32767997]
[1752231166104,0.1656,3006.1,3006.0,3.32767997]
[1752231166997,0.1656,3006.1,3006.0,3.77557997]
[1752231167190,4.50463975,3006.1,3006.0,3.77557997]
[1752231167666,4.50463975,3006.1,3006.0,4.48581686]
[1752231167871,4.50463975,3006.1,3006.0,5.25501686]
[1752231168674,4.50463975,3006.1,3006.0,4.54477997]
[1752231170894,4.50463975,3006.1,3006.0,3.77557997]
[1752231172073,4.50463975,3006.1,3006.0,4.56877997]
[1752231173272,4.50463975,3006.1,3006.0,3.77557997]
[1752231176793,4.50463975,3006.1,3006.0,4.08643482]
[1752231179907,4.50463975,3006.1,3006.0,4.89683482]
[1752231185829,4.50463975,3006.1,3006.0,4.08643482]
[1752231191408,0.1656,3006.1,3006.0,6.1881172]
[1752231191608,4.33903975,3007.0,3006.9,3.32568425]
[1752231191807,9.38803975,3007.0,3006.9,4.0726391]
[1752231192516,9.38803975,3007.0,3006.9,3.6365391]
[1752231193608,10.32684373,3007.0,3006.9,3.6365391]
[1752231193910,5.27784373,3007.0,3006.9,3.6365391]
[1752231194130,4.33903975,3007.0,3006.9,3.6365391]
[1752231196145,4.33903975,3007.0,3006.9,0.31085485]
[1752231197349,4.33903975,3007.0,3006.9,3.6365391]
[1752231197913,9.38803975,3007.0,3006.9,3.6365391]
[1752231198539,9.38803975,3007.0,3006.9,4.0726391]
[1752231198722,4.33903975,3007.0,3006.9,4.0726391]
[1752231198923,9.38803975,3007.0,3006.9,4.0726391]
[1752231199132,4.33903975,3007.0,3006.9,4.0726391]
[1752231199336,9.38803975,3007.0,3006.9,4.0726391]
[1752231199638,4.33903975,3007.0,3006.9,4.0726391]
[1752231199846,9.38803975,3007.0,3006.9,4.07264028]
[1752231200342,9.38803975,3007.0,3006.9,3.63651448]
[1752231200549,9.38803975,3007.0,3006.9,4.07261448]
[1752231202052,9.38703975,3007.0,3006.9,4.07261448]
[1752231202450,9.38703975,3007.0,3006.9,0.31083023]
[1752231202635,10.87574372,3007.0,3006.9,0.62160506]
[1752231202841,10.87574372,3007.0,3006.9,0.62161769]
[1752231207830,21.67854372,3007.0,3006.9,0.62161769]
[1752231208032,21.82564372,3007.0,3006.9,0.31083023]
[1752231208222,21.67854372,3007.0,3006.9,0.31083023]
[1752231212554,21.82564372,3007.0,3006.9,0.31083023]
[1752231212755,22.54027684,3007.0,3006.9,0.31083023]
[1752231212961,21.82564372,3007.0,3006.9,0.31083023]
[1752231213163,22.54031324,3007.0,3006.9,0.31083023]
[1752231213326,21.82564372,3007.0,3006.9,0.31083023]
[1752231213754,22.5403669,3007.0,3006.9,0.31083023]
[1752231214440,21.67854372,3007.0,3006.9,0.31083023]
[1752231214764,22.39333469,3007.0,3006.9,0.31083023]
[1752231214959,21.67854372,3007.0,3006.9,0.31083023]
[1752231215258,22.39338048,3007.0,3006.9,0.31083023]
[1752231216626,10.7156,3006.9,3006.4,3.76232042]
[1752231216851,0.55,3006.7,3006.5,0.74709232]
[1752231217053,0.55,3006.7,3006.4,3.32622042]
[1752231217054,5.048,3006.6,3006.4,3.32622042]
[1752231217252,5.048,3006.6,3006.5,0.31099275]
[1752231217661,5.048,3006.6,3006.5,0.74709275]
[1752231218050,5.048,3006.6,3006.5,0.31099275]
[1752231218254,9.94683975,3006.6,3006.5,0.31099275]
[1752231220163,11.32173975,3006.6,3006.5,0.31099275]
[1752231220366,28.34151433,3006.6,3006.5,0.31099275]
[1752231220532,28.48861433,3006.6,3006.5,0.31099275]
[1752231221364,29.20337907,3006.6,3006.5,0.31099275]
[1752231221537,29.05627907,3006.6,3006.5,0.31099275]
[1752231221731,29.38948438,3006.6,3006.5,0.31099275]
[1752231221931,29.20337907,3006.6,3006.5,0.31099275]
[1752231222866,29.38935088,3006.6,3006.5,0.31099275]
[1752231223380,4.028047,3006.3,3006.0,0.001]
[1752231223542,18.39467458,3006.1,3006.0,0.001]
[1752231223738,28.67653851,3006.1,3006.0,0.001]
[1752231223968,28.82363851,3006.1,3006.0,0.001]
[1752231224180,29.66683064,3006.1,3006.0,0.001]
[1752231224364,30.19476413,3006.1,3006.0,0.001]
[1752231224881,30.38048205,3006.1,3006.0,0.001]
[1752231225243,30.19476413,3006.1,3006.0,0.001]
[1752231225963,30.38034796,3006.1,3006.0,0.001]
[1752231226353,30.38034796,3006.1,3004.8,0.001]